fUST/lending_fUST_20240410
["ID","MTS","AMOUNT","RATE_DAILY","PERIOD"]
[322025664,1712695832382,-264.59046087,0.00024399,7]
[322025666,1712695832391,-8194.73595951,0.000244,2]
[322025668,1712695832400,-992.45955839,0.00024402,2]
[322025671,1712695832410,-252.65803434,0.00024402,2]
[322025673,1712695832419,-1455.25334936,0.00024402,2]
[322025674,1712695832428,-1274.72003538,0.00024402,2]
[322025676,1712695832438,-2101.11801555,0.00024402,2]
[322025678,1712695832449,-154.98450155,0.00024403,2]
[322025680,1712695832458,-379.70522449,0.00024403,2]
[322025682,1712695832467,-280.26811122,0.00024403,2]
[322025684,1712695832477,-154.98450155,0.00024403,2]
[322025686,1712695832486,-726.59915111,0.00024403,2]
[322025688,1712695832495,-154.9690062,0.00024404,2]
[322025690,1712695832504,-10347.78337025,0.00024405,2]
[322026311,1712695842970,-157.59425558,0.0002416,2]
[322026312,1712695842980,-4189.29191214,0.00024405,2]
[322026313,1712695842989,-2312.07197084,0.0002442,2]
[322026314,1712695842998,-255.45130168,0.00024443,2]
[322026315,1712695843008,-248.56344425,0.00024443,2]
[322026316,1712695843017,-530.70137355,0.00024443,2]
[322026317,1712695843026,-421.84918282,0.00024443,2]
[322026318,1712695843035,-693.5525059,0.00024443,2]
[322026319,1712695843044,-353.68830653,0.00024443,2]
[322026320,1712695843053,-181.13214996,0.00024443,2]
[322026321,1712695843064,-559.6493536,0.00024443,2]
[322026322,1712695843073,-1199.77364357,0.00024444,2]
[322026323,1712695843082,-504.04962255,0.00024444,2]
[322026324,1712695843091,-11702.23141297,0.00024445,2]
[322026325,1712695843103,-1066.13629728,0.00024445,2]
[322027049,1712695852893,237.14597222,0.0001849,2]
[322027061,1712695853001,156.46414225,0.00020528,2]
[322027115,1712695853497,250.53698815,0.00020528,2]
[322027334,1712695855687,765.84554286,0.00022188,5]
[322027413,1712695856677,190.27874603,0.00020528,2]
[322027541,1712695857882,16047.23018457,0.00020528,2]
[322027709,1712695859498,155.12774901,0.00020528,2]
[322027715,1712695859558,220.72763319,0.00020528,2]
[322027725,1712695859658,384.88102707,0.00020528,2]
[322027737,1712695859778,261.27248051,0.00020528,2]
[322027786,1712695860289,314.26382309,0.00020528,2]
[322027855,1712695861009,214.46148999,0.00020528,2]
[322028518,1712695868638,256.05037465,0.00019,2]
[322028568,1712695869149,690.88659412,0.00020528,2]
[322029030,1712695873657,263.12159727,0.00022186,5]
[322029168,1712695875418,250.53698815,0.00020528,2]
[322029572,1712695879606,384.88102707,0.00020528,2]
[322029713,1712695880982,154.90705577,0.00020528,2]
[322029834,1712695882247,314.26382309,0.00020528,2]
[322030000,1712695883840,16047.23018457,0.00020528,2]
[322030484,1712695888839,690.88659412,0.00020528,2]
[322030568,1712695895441,250.53698815,0.00020528,2]
[322030569,1712695898264,313.79836656,0.00020528,2]
[322030571,1712695901835,4432.77459657,0.00020528,2]
[322030573,1712695905010,154.90705577,0.00020528,2]
[322030574,1712695905116,690.88659412,0.00020528,2]
[322030576,1712695913431,250.53698815,0.00020528,2]
[322030578,1712695925092,690.88659412,0.00020528,2]
[322030579,1712695926985,154.90705577,0.00020528,2]
[322030583,1712695935442,250.53698815,0.00020528,2]
[322030584,1712695943088,690.88659412,0.00020528,2]
[322030585,1712695945012,154.90705577,0.00020528,2]
[322030586,1712695955443,252.83687441,0.00020528,2]
[322030588,1712695963292,159.86249332,0.00020528,2]
[322030589,1712695965082,154.90705577,0.00020528,2]
[322030590,1712695982990,154.90705577,0.00020528,2]
[322030591,1712696002994,214.92616467,0.00020528,2]
[322030600,1712696030606,8203.57332653,0.0002,2]
[322030605,1712696043456,200.0,0.00020294,2]
[322030608,1712696065827,1163.4649039,0.000176,2]
[322030621,1712696074720,1515.420376,0.00020228,2]
[322030623,1712696078612,1675.37290108,0.0002,2]
[322030624,1712696143941,737.4757658,0.00020125,2]
[322030630,1712696165763,8958.7486188,0.00020123,2]
[322030631,1712696219501,249.27004585,0.00021016,2]
[322030632,1712696244497,24900.0,0.0002015,2]
[322030633,1712696259780,-343.0,0.00021102,2]
[322030635,1712696291579,175.739345,0.00019828,2]
[322030636,1712696301310,-499.0,0.000252,7]
[322030637,1712696301588,158.9426255,0.00020998,2]
[322030639,1712696313883,-0.73,0.000252,7]
[322030640,1712696313907,-500.0,0.000252,7]
[322030641,1712696313930,-428.58,0.000252,7]
[322030642,1712696313955,-500.0,0.000252,7]
[322030643,1712696313980,-500.0,0.000252,7]
[322030644,1712696314004,-391.28,0.000252,7]
[322030652,1712696354752,166.18003056,0.00020997,2]
[322030653,1712696384440,-2000.0,0.000262,30]
[322030654,1712696385761,1325.8495439,0.00020095,2]
[322030655,1712696402941,-2000.0,0.0002621,30]
[322030656,1712696402965,-1000.0,0.0002622,30]
[322030657,1712696410246,-1000.0,0.0002622,30]
[322030658,1712696410309,-1000.0,0.0002623,30]
[322030659,1712696419831,-1000.0,0.0002623,30]
[322030660,1712696419856,-1000.0,0.0002624,30]
[322030661,1712696422039,-1000.0,0.0002624,30]
[322030662,1712696422063,-1000.0,0.0002625,30]
[322030663,1712696441081,-300.0,0.0002625,30]
[322030664,1712696444650,213.8523888,0.00020082,2]
[322030665,1712696463979,984.6918415,0.00020079,2]
[322030666,1712696495485,493.0328721,0.00020121,2]
[322030667,1712696508043,12186.8591177,0.00020232,2]
[322030668,1712696608501,757.710188,0.0002012,2]
[322030669,1712696729080,24900.0,0.00020089,2]
[322030670,1712696733224,154.90705577,0.00020088,2]
[322030671,1712696754056,250.0,0.00020038,2]
[322030673,1712696836582,9419.00851662,0.0002102,2]
[322030674,1712696840442,240.67684413,0.0002102,2]
[322030675,1712696843236,1617.16242552,0.0002102,2]
[322030676,1712696846010,154.90705577,0.0002102,2]
[322030677,1712696846917,1029.02845319,0.0002102,2]
[322030678,1712696849747,1866.00896233,0.0002102,2]
[322030679,1712696849826,211.40870572,0.0002102,2]
[322030680,1712696850807,282.31285316,0.0002102,2]
[322030681,1712696850839,2121.15236818,0.0002102,2]
[322030682,1712696856078,1930.68038705,0.0002102,2]
[322030683,1712696861731,2093.30000142,0.0002102,2]
[322030684,1712696863011,781.78611462,0.0002102,2]
[322030685,1712696863742,188.6336911,0.0002102,2]
[322030686,1712696863914,687.19966601,0.0002102,2]
[322030687,1712696864275,154.90705577,0.0002102,2]
[322030688,1712696864919,154.90705577,0.0002102,2]
[322030689,1712696867335,562.27799089,0.0002102,2]
[322030690,1712696868352,886.79559656,0.0002102,2]
[322030691,1712696870876,1087.22335945,0.0002102,2]
[322030692,1712696872643,154.90705577,0.0002102,2]
[322030693,1712696874232,546.04585195,0.0002102,2]
[322030694,1712696874274,562.79218199,0.0002102,2]
[322030695,1712696876550,154.90705577,0.0002102,2]
[322030696,1712696877249,936.13344748,0.0002102,2]
[322030697,1712696878426,185.57928704,0.0002102,2]
[322030698,1712696878550,470.02690454,0.0002102,2]
[322030699,1712696879443,518.395,0.0002102,2]
[322030700,1712696879474,1042.91596156,0.0002102,2]
[322030701,1712696879994,283.34484323,0.0002102,2]
[322030702,1712696880762,300.0,0.0002102,2]
[322030703,1712696881187,407.69592082,0.0002102,2]
[322030704,1712696881230,1963.97984376,0.0002102,2]
[322030705,1712696881879,3735.81357685,0.0002102,2]
[322030706,1712696881940,518.395,0.0002102,2]
[322030707,1712696882413,300.0,0.0002102,2]
[322030708,1712696882775,156.56577036,0.0002102,2]
[322030709,1712696882824,524.73312661,0.0002102,2]
[322030710,1712696883648,154.90705577,0.0002102,2]
[322030711,1712696886459,518.395,0.0002102,2]
[322030712,1712696887125,303.81962515,0.0002102,2]
[322030713,1712696890936,518.395,0.0002102,2]
[322030715,1712696894410,207.24041701,0.0002102,2]
[322030716,1712696942973,3365.22191486,0.00020925,2]
[322030717,1712696955915,642.28051152,0.0002,2]
[322030718,1712697017862,473.2366857,0.0002102,2]
[322030719,1712697024123,282.7345517,0.0002102,2]
[322030720,1712697024723,3137.24198449,0.0002102,2]
[322031099,1712697040691,1617.16242552,0.0002102,2]
[322031111,1712697043147,240.67684413,0.0002102,2]
[322031114,1712697046245,-300.0,0.00021021,2]
[322031115,1712697046255,-15.8548213,0.00021021,2]
[322031116,1712697046277,-0.03270188,0.00021021,2]
[322031117,1712697050253,282.31285316,0.0002102,2]
[322031118,1712697053370,211.40870572,0.0002102,2]
[322031119,1712697055449,687.19966601,0.0002102,2]
[322031121,1712697057805,154.90705577,0.0002102,2]
[322031122,1712697059601,1930.68038705,0.0002102,2]
[322031124,1712697064313,1866.00896233,0.0002102,2]
[322031125,1712697064962,562.27799089,0.0002102,2]
[322031127,1712697069886,886.79559656,0.0002102,2]
[322031128,1712697071255,188.6336911,0.0002102,2]
[322031129,1712697071997,470.02690454,0.0002102,2]
[322031131,1712697102946,1087.22335945,0.0002102,2]
[322031132,1712697111013,154.90705577,0.0002102,2]
[322031133,1712697112307,19135.52113988,0.0002102,2]
[322031134,1712697117836,524.73312661,0.0002102,2]
[322031135,1712697119251,1963.97984376,0.0002102,2]
[322031136,1712697119906,3735.81357685,0.0002102,2]
[322031137,1712697120735,300.0,0.0002102,2]
[322031138,1712697121923,300.0,0.0002102,2]
[322031139,1712697122280,936.13344748,0.0002102,2]
[322031140,1712697122483,378.855094,0.00020271,2]
[322031141,1712697123507,1042.91596156,0.0002102,2]
[322031142,1712697123751,300.0,0.0002102,2]
[322031143,1712697125402,22745.90339692,0.0002102,2]
[322031144,1712697129446,207.24041701,0.0002102,2]
[322031145,1712697134679,154.90705577,0.0002102,2]
[322031146,1712697138283,154.90705577,0.0002102,2]
[322031147,1712697140312,562.79218199,0.0002102,2]
[322031148,1712697141249,2935.70815242,0.0002102,2]
[322031149,1712697145744,2935.70815242,0.0002102,2]
[322031150,1712697176164,642.60237071,0.0001892,2]
[322031151,1712697230495,24900.0,0.00020538,2]
[322031152,1712697306101,6208.0,0.00025997,35]
[322031153,1712697332735,250.0,0.00020116,2]
[322031154,1712697400790,213.999999,0.000195,10]
[322031155,1712697425487,5587.0,0.00025997,35]
[322031156,1712697477394,428.40158047,0.0001892,2]
[322031157,1712697532506,708.50951545,0.00020997,2]
[322031158,1712697546414,5028.0,0.00025997,35]
[322031159,1712697665671,3177.0,0.00025997,35]
[322031167,1712698181520,473.2366857,0.0002102,2]
[322031168,1712698185024,211.40870572,0.0002102,2]
[322031169,1712698190012,181.0288212,0.0002102,2]
[322031170,1712698190459,886.79559656,0.0002102,2]
[322031171,1712698197418,282.31285316,0.0002102,2]
[322031172,1712698197471,158.9426255,0.00020921,2]
[322031173,1712698205371,154.92253873,0.0002102,2]
[322031174,1712698205646,619.94582601,0.00020924,2]
[322031175,1712698206423,3137.24198449,0.0002102,2]
[322031176,1712698207143,3735.81357685,0.0002102,2]
[322031177,1712698213244,1930.68038705,0.0002102,2]
[322031178,1712698215613,5783.085097,0.0002102,2]
[322031179,1712698215758,154.92253873,0.0002102,2]
[322031180,1712698216003,154.92253873,0.0002102,2]
[322031181,1712698218416,1963.97984376,0.0002102,2]
[322031182,1712698225955,154.92253873,0.0002102,2]
[322031214,1712698232276,-2093.30000142,0.00021021,2]
[322031216,1712698232287,-303.81962515,0.00021021,2]
[322031218,1712698232297,-188.6336911,0.00021021,2]
[322031220,1712698232306,-193.89304873,0.00021021,2]
[322031224,1712698232334,-106.10695127,0.00021021,2]
[322031226,1712698232343,-300.0,0.00021021,2]
[322031228,1712698232353,-1617.16242552,0.00021022,2]
[322031229,1712698232362,-19135.52113988,0.00021023,2]
[322031231,1712698232372,-868.54910044,0.00021225,2]
[322031232,1712698232381,-868.36531208,0.00021226,2]
[322031234,1712698232391,-277.03921209,0.00021232,2]
[322031236,1712698232400,-1485.70436416,0.00021233,2]
[322031238,1712698232409,-189.427547,0.00021239,2]
[322031241,1712698232418,-3718.21894048,0.00022,2]
[322031243,1712698232427,-158.51515046,0.00022865,2]
[322031246,1712698232436,-420.0,0.00022866,2]
[322031249,1712698232445,-322.95816912,0.00022892,2]
[322031252,1712698232454,-153.0,0.00023,2]
[322031255,1712698232463,-153.0,0.00023,2]
[322031258,1712698232472,-153.0,0.00023,2]
[322031261,1712698232481,-306.0,0.00023,2]
[322031264,1712698232490,-242.74204017,0.00023,2]
[322031267,1712698232499,-420.0,0.00023123,2]
[322031270,1712698232508,-153.0,0.000233,2]
[322031273,1712698232518,-619.945826,0.00023305,2]
[322031276,1712698232527,-153.0,0.00023341,2]
[322031279,1712698232537,-153.0,0.00023341,2]
[322031282,1712698232547,-255.45130168,0.00023358,2]
[322031284,1712698232556,-562.79218199,0.00023358,2]
[322031286,1712698232566,-421.84918282,0.00023358,2]
[322031288,1712698232575,-170.92149901,0.00023358,2]
[322031290,1712698232584,-1203.76500876,0.00023358,2]
[322031292,1712698232593,-693.5525059,0.00023359,2]
[322031294,1712698232603,-707.08403844,0.00023359,2]
[322031296,1712698232613,-209.753727,0.0002336,2]
[322031298,1712698232623,-2121.15236818,0.0002336,2]
[322031300,1712698232632,-556.90841365,0.0002336,2]
[322031316,1712698232767,-294.04281149,0.0002336,2]
[322031318,1712698232780,-203.04585195,0.0002336,2]
[322031320,1712698232791,-160.26605887,0.0002336,2]
[322031322,1712698232801,-156.56577036,0.0002336,2]
[322031324,1712698232810,-407.69592082,0.0002336,2]
[322031326,1712698232821,-282.7345517,0.0002336,2]
[322031328,1712698232830,-504.04962255,0.0002336,2]
[322031330,1712698232840,-240.67684413,0.0002336,2]
[322031333,1712698232850,-181.13214996,0.0002336,2]
[322031335,1712698232860,-353.68830653,0.0002336,2]
[322031337,1712698232870,-155.09294423,0.0002336,2]
[322031339,1712698232878,-687.19966601,0.0002336,2]
[322031340,1712698232887,-559.6493536,0.0002336,2]
[322031342,1712698232896,-617.07485229,0.0002336,2]
[322031344,1712698232905,-182.7514377,0.0002336,2]
[322031347,1712698232915,-472.04489793,0.0002336,2]
[322031349,1712698232925,-1087.22335945,0.0002336,2]
[322031351,1712698232934,-224.65437307,0.0002336,2]
[322031353,1712698232943,-530.70137355,0.0002336,2]
[322031355,1712698232952,-6945.52591252,0.0002336,2]
[322031357,1712698232961,-1029.02845319,0.0002336,2]
[322031358,1712698232971,-245.06916337,0.0002336,2]
[322031360,1712698232980,-251.44478006,0.0002336,2]
[322031362,1712698232990,-885.90451548,0.0002336,2]
[322031364,1712698232999,-248.56344425,0.0002336,2]
[322031367,1712698233008,-342.22250467,0.0002336,2]
[322031369,1712698233018,-1022.00063022,0.0002336,2]
[322031370,1712698233027,-2469.6463664,0.0002336,2]
[322031373,1712698233036,-244.85214527,0.0002336,2]
[322031374,1712698233045,-661.33256069,0.0002336,2]
[322031376,1712698233054,-5783.085097,0.0002336,2]
[322031378,1712698233064,-284.07699234,0.0002336,2]
[322031380,1712698233073,-9419.00851662,0.00023361,2]
[322031382,1712698233082,-498.91412414,0.00023361,2]
[322031384,1712698233091,-500.0,0.00023361,2]
[322031385,1712698233100,-360.41900108,0.00023361,2]
[322031386,1712698233109,-564.02828771,0.00023361,2]
[322031388,1712698233118,-252.99281962,0.00023361,2]
[322031390,1712698233127,-58984.79781209,0.00023362,2]
[322031392,1712698233136,-1197.94558208,0.00023595,2]
[322031394,1712698233145,-153.0,0.00023695,2]
[322031396,1712698233155,-153.0,0.00023695,2]
[322031398,1712698233164,-153.0,0.00023695,2]
[322031400,1712698233174,-153.0,0.00023695,2]
[322031402,1712698233183,-153.0,0.00023695,2]
[322031404,1712698233193,-153.0,0.00023695,2]
[322031406,1712698233203,-153.0,0.00023695,2]
[322031408,1712698233212,-445.9578627,0.00023757,2]
[322031410,1712698233222,-1197.94558207,0.00023836,2]
[322031413,1712698233232,-11702.23141298,0.00023893,2]
[322031414,1712698233241,-285.60105365,0.00023897,2]
[322031416,1712698233251,-33380.76320474,0.00024,2]
[322031419,1712698233261,-9063.890214,0.00024,2]
[322031421,1712698233270,-1197.94558207,0.00024076,2]
[322031422,1712698233279,-259.09617081,0.00024158,2]
[322031425,1712698233291,-157.59425558,0.000242,2]
[322031426,1712698233300,-1197.94558207,0.00024317,2]
[322031429,1712698233309,-153.0,0.00024332,2]
[322031430,1712698233319,-153.0,0.00024332,2]
[322031432,1712698233328,-153.0,0.00024332,2]
[322031434,1712698233337,-153.0,0.00024332,2]
[322031436,1712698233347,-6656.30647397,0.00024445,2]
[322031438,1712698233356,-153.0,0.00024517,2]
[322031439,1712698233365,-649.18825044,0.00024526,2]
[322031441,1712698233374,-2000.0,0.00024554,2]
[322031443,1712698233382,-1197.94558207,0.00024557,2]
[322031445,1712698233391,-2413.5508468,0.00024557,2]
[322031446,1712698233402,-158.9426255,0.00024557,2]
[322031448,1712698233411,-154.98450155,0.00024651,2]
[322031450,1712698233420,-2764.87754133,0.00024651,2]
[322031452,1712698233428,-154.98450155,0.00024651,2]
[322031453,1712698233437,-154.98450155,0.00024651,2]
[322031454,1712698233447,-589.4892177,0.00024651,2]
[322031455,1712698233456,-1307.52332084,0.00024651,2]
[322031456,1712698233465,-2616.08628475,0.00024651,2]
[322031457,1712698233475,-404.21823688,0.00024652,2]
[322031458,1712698233483,-157.48065461,0.00024653,2]
[322031459,1712698233492,-243.25420643,0.00024653,2]
[322031460,1712698233502,-154.98450155,0.00024653,2]
[322031461,1712698233511,-154.98450155,0.00024653,2]
[322031462,1712698233520,-213.47021085,0.00024653,2]
[322031463,1712698233530,-360.86438748,0.00024653,2]
[322031464,1712698233539,-154.98450155,0.00024653,2]
[322031465,1712698233548,-193.0126642,0.00024653,2]
[322031466,1712698233557,-154.98450155,0.00024653,2]
[322031467,1712698233566,-208.8311992,0.00024653,2]
[322031468,1712698233576,-254.65965315,0.00024653,2]
[322031469,1712698233585,-245.3914531,0.00024653,2]
[322031470,1712698233593,-211.29667729,0.00024653,2]
[322031471,1712698233602,-160.80271403,0.00024653,2]
[322031472,1712698233611,-5791.19752791,0.00024654,2]
[322031473,1712698233620,-218.09993873,0.00024655,2]
[322031474,1712698233629,-155.56965635,0.00024655,2]
[322031475,1712698233638,-28060.67950499,0.00024655,2]
[322031476,1712698233647,-155.70774116,0.00024656,2]
[322031477,1712698233657,-166.94313293,0.00024656,2]
[322031478,1712698233666,-267.00492922,0.00024657,2]
[322031479,1712698233675,-412.84933697,0.00024657,2]
[322031480,1712698233684,-581.28,0.00024657,2]
[322031481,1712698233693,-200.25216823,0.00024657,2]
[322031482,1712698233702,-500.0,0.00024657,2]
[322031483,1712698233711,-500.0,0.00024657,2]
[322031484,1712698233720,-500.0,0.00024657,2]
[322031485,1712698233730,-500.0,0.00024657,2]
[322031486,1712698233740,-500.0,0.00024657,2]
[322031487,1712698233750,-501.2134158,0.00024657,2]
[322031488,1712698233759,-500.0,0.00024657,2]
[322031489,1712698233768,-500.0,0.00024657,2]
[322031490,1712698233778,-500.0,0.00024657,2]
[322031491,1712698233791,-364.52357252,0.00024657,2]
[322031492,1712698233800,-500.0,0.00024657,2]
[322031493,1712698233810,-500.0,0.00024657,2]
[322031494,1712698233819,-500.67888828,0.00024657,2]
[322031495,1712698233830,-500.0,0.00024657,2]
[322031496,1712698233839,-416.69818138,0.00024657,2]
[322031497,1712698233848,-500.0,0.00024657,2]
[322031498,1712698233858,-500.35650114,0.00024657,2]
[322031499,1712698233868,-500.0,0.00024657,2]
[322031500,1712698233877,-503.92427033,0.00024657,2]
[322031501,1712698233886,-500.0,0.00024657,2]
[322031502,1712698233895,-500.0,0.00024657,2]
[322031503,1712698233904,-503.44939261,0.00024657,2]
[322031504,1712698233914,-500.0,0.00024657,2]
[322031505,1712698233922,-500.0,0.00024657,2]
[322031506,1712698233932,-500.0,0.00024657,2]
[322031507,1712698233941,-500.63435886,0.00024657,2]
[322031508,1712698233950,-500.0,0.00024657,2]
[322031509,1712698233959,-592.7698751,0.00024657,2]
[322031510,1712698233968,-500.0,0.00024657,2]
[322031511,1712698233978,-500.0,0.00024657,2]
[322031512,1712698233987,-500.0,0.00024657,2]
[322031513,1712698233996,-500.0,0.00024657,2]
[322031514,1712698234005,-516.34384226,0.00024657,2]
[322031515,1712698234014,-500.0,0.00024657,2]
[322031516,1712698234024,-580.88061183,0.00024657,2]
[322031517,1712698234033,-500.0,0.00024657,2]
[322031518,1712698234042,-300.0,0.00024657,2]
[322031519,1712698234051,-500.0,0.00024657,2]
[322031520,1712698234062,-500.0,0.00024657,2]
[322031521,1712698234072,-500.0,0.00024657,2]
[322031522,1712698234081,-500.0,0.00024657,2]
[322031523,1712698234090,-156.83958754,0.00024657,2]
[322031524,1712698234100,-639.63522035,0.00024657,2]
[322031525,1712698234109,-500.0,0.00024657,2]
[322031526,1712698234120,-516.09989735,0.00024657,2]
[322031527,1712698234129,-500.0,0.00024657,2]
[322031528,1712698234139,-500.0,0.00024657,2]
[322031529,1712698234148,-500.0,0.00024657,2]
[322031530,1712698234157,-500.0,0.00024657,2]
[322031531,1712698234167,-500.0,0.00024657,2]
[322031532,1712698234176,-513.55991851,0.00024657,2]
[322031533,1712698234185,-1000.0,0.00024657,2]
[322031534,1712698234195,-164.8734558,0.00024657,2]
[322031535,1712698234204,-500.0,0.00024657,2]
[322031536,1712698234213,-500.0,0.00024657,2]
[322031537,1712698234222,-500.0,0.00024657,2]
[322031538,1712698234231,-500.0,0.00024657,2]
[322031539,1712698234240,-500.0,0.00024657,2]
[322031540,1712698234249,-500.0,0.00024657,2]
[322031541,1712698234258,-500.0,0.00024657,2]
[322031542,1712698234268,-352.17134844,0.00024657,2]
[322031543,1712698234277,-500.0,0.00024657,2]
[322031544,1712698234287,-500.0,0.00024657,2]
[322031545,1712698234297,-500.0,0.00024657,2]
[322031546,1712698234306,-501.3228882,0.00024657,2]
[322031547,1712698234315,-501.11126677,0.00024657,2]
[322031548,1712698234324,-371.33960872,0.00024657,2]
[322031549,1712698234333,-500.0,0.00024657,2]
[322031550,1712698234342,-500.0,0.00024657,2]
[322031551,1712698234351,-500.0,0.00024657,2]
[322031552,1712698234360,-500.0,0.00024657,2]
[322031553,1712698234369,-500.0,0.00024657,2]
[322031554,1712698234378,-291.49532115,0.00024657,2]
[322031555,1712698234386,-500.0,0.00024657,2]
[322031556,1712698234395,-722.47,0.00024657,2]
[322031557,1712698234404,-500.0,0.00024657,2]
[322031558,1712698234413,-177.93681245,0.00024657,2]
[322031559,1712698234423,-500.0,0.00024657,2]
[322031560,1712698234431,-500.0,0.00024657,2]
[322031561,1712698234441,-901.03,0.00024657,2]
[322031562,1712698234450,-500.0,0.00024657,2]
[322031563,1712698234459,-500.0,0.00024657,2]
[322031564,1712698234467,-500.0,0.00024657,2]
[322031565,1712698234476,-500.0,0.00024657,2]
[322031566,1712698234485,-500.0,0.00024657,2]
[322031567,1712698234494,-500.0,0.00024657,2]
[322031568,1712698234504,-500.0,0.00024657,2]
[322031569,1712698234513,-1264.62,0.00024657,2]
[322031570,1712698234522,-500.0,0.00024657,2]
[322031571,1712698234530,-500.0,0.00024657,2]
[322031572,1712698234539,-500.0,0.00024657,2]
[322031573,1712698234548,-500.0,0.00024657,2]
[322031574,1712698234557,-601.93,0.00024657,2]
[322031575,1712698234567,-500.0,0.00024657,2]
[322031576,1712698234575,-620.61,0.00024657,2]
[322031577,1712698234584,-500.0,0.00024657,2]
[322031578,1712698234593,-500.0,0.00024657,2]
[322031579,1712698234602,-500.0,0.00024657,2]
[322031580,1712698234611,-500.0,0.00024657,2]
[322031581,1712698234620,-500.0,0.00024657,2]
[322031582,1712698234629,-500.0,0.00024657,2]
[322031583,1712698234638,-477.40973103,0.00024657,2]
[322031584,1712698234646,-500.0,0.00024657,2]
[322031585,1712698234655,-500.0,0.00024657,2]
[322031586,1712698234665,-500.0,0.00024657,2]
[322031587,1712698234674,-500.0,0.00024657,2]
[322031588,1712698234683,-774.27,0.00024657,2]
[322031589,1712698234692,-500.0,0.00024657,2]
[322031590,1712698234701,-500.0,0.00024657,2]
[322031591,1712698234710,-500.0,0.00024657,2]
[322031592,1712698234721,-500.0,0.00024657,2]
[322031593,1712698234731,-500.0,0.00024657,2]
[322031594,1712698234742,-500.0,0.00024657,2]
[322031595,1712698234753,-500.0,0.00024657,2]
[322031596,1712698234762,-500.0,0.00024657,2]
[322031597,1712698234771,-500.0,0.00024657,2]
[322031598,1712698234784,-378.90049907,0.00024657,2]
[322031599,1712698234794,-500.0,0.00024657,2]
[322031600,1712698234803,-500.0,0.00024657,2]
[322031601,1712698234814,-294.51046818,0.00024657,2]
[322031602,1712698234824,-500.0,0.00024657,2]
[322031603,1712698234834,-500.0,0.00024657,2]
[322031604,1712698234844,-500.0,0.00024657,2]
[322031605,1712698234855,-500.0,0.00024657,2]
[322031606,1712698234866,-500.0,0.00024657,2]
[322031607,1712698234876,-500.0,0.00024657,2]
[322031608,1712698234885,-500.0,0.00024657,2]
[322031609,1712698234894,-184.69300335,0.00024657,2]
[322031610,1712698234904,-500.0,0.00024657,2]
[322031611,1712698234914,-500.0,0.00024657,2]
[322031612,1712698234923,-500.0,0.00024657,2]
[322031613,1712698234933,-500.0,0.00024657,2]
[322031614,1712698234942,-500.0,0.00024657,2]
[322031615,1712698234951,-500.0,0.00024657,2]
[322031616,1712698234960,-500.0,0.00024657,2]
[322031617,1712698234969,-180.43505414,0.00024657,2]
[322031618,1712698234978,-1021.0,0.00024657,2]
[322031619,1712698234987,-510.78363155,0.00024657,2]
[322031620,1712698234996,-500.0,0.00024657,2]
[322031621,1712698235005,-500.0,0.00024657,2]
[322031622,1712698235014,-500.0,0.00024657,2]
[322031623,1712698235024,-501.09464452,0.00024657,2]
[322031624,1712698235034,-500.7657084,0.00024657,2]
[322031625,1712698235043,-500.0,0.00024657,2]
[322031626,1712698235052,-722.03,0.00024657,2]
[322031627,1712698235062,-833.23,0.00024657,2]
[322031628,1712698235071,-787.95,0.00024657,2]
[322031629,1712698235081,-500.0,0.00024657,2]
[322031630,1712698235090,-500.0,0.00024657,2]
[322031631,1712698235100,-508.51067803,0.00024657,2]
[322031632,1712698235109,-500.0,0.00024657,2]